[Event "Panchenko Memorial-A 2021"]
[Site "Chelyabinsk"]
[Date "2021.09.14"]
[Round "2.1"]
[White "Sargsyan, Shant"]
[Black "Urazayev, Arystanbek"]
[Result "1/2-1/2"]
[ECO "D02"]
[WhiteElo "2642"]
[BlackElo "2453"]
[Annotator "ChessBase"]
[PlyCount "80"]
[EventDate "2021.09.13"]
[EventType "swiss"]
[EventCountry "RUS"]
[SourceTitle "playchess.com"]
[Source "ChessBase"]
[SourceQuality "1"]
[TimeControl "5400+30"]

1. d4 {[%emt 0:01:02]} d5 {[%emt 0:00:18]} 2. Nf3 {[%emt 0:00:33]} Nf6 {[%emt 0:00:37]} 3. c4 {[%emt 0:00:13]} e6 {[%emt 0:00:11]} 4. g3 {[%emt 0:00:21]} Bb4+ {[%emt 0:01:10]} 5. Bd2 {[%emt 0:00:56]} Be7 {[%emt 0:00:38]} 6. Bg2 {[%emt 0:00:25]} O-O {[%emt 0:00:30]} 7. O-O {[%emt 0:00:09]} Nbd7 {[%emt 0:01:38]} 8. Qc2 {[%emt 0:00:52]} Ne4 {[%emt 0:01:16]} 9. Bf4 {[%emt 0:03:20]} c6 {[%emt 0:01:06]} 10. Nc3 {[%emt 0:02:10]} g5 {[%emt 0:01:21]} 11. Be3 {[%emt 0:01:09]} Nd6 {[%emt 0:00:58]} 12. b3 {[%emt 0:01:44]} Nf5 {[%emt 0:01:38]} 13. Bd2 {[%emt 0:00:27]} g4 {[%emt 0:00:27]} 14. Ne1 {[%emt 0:00:04]} Nxd4 {[%emt 0:00:07]} 15. Qd1 {[%emt 0:00:04]} Bf6 {[%emt 0:00:25]} 16. e3 {[%emt 0:02:42]} Nf3+ {[%emt 0:00:09]} 17. Nxf3 {[%emt 0:00:09]} gxf3 {[%emt 0:00:06]} 18. Qxf3 {[%emt 0:00:43]} dxc4 {[%emt 0:00:13]} 19. Qg4+ {[%emt 0:05:16]} Bg7 {[%emt 0:01:03]} 20. Qxc4 {[%emt 0:00:42]} b5 {[%emt 0:01:11]} 21. Qxc6 {[%emt 0:06:06]} Rb8 {[%emt 0:00:34]} 22. Rad1 {[%emt 0:02:27]} Bb7 {[%emt 0:03:59]} 23. Qd6 {[%emt 0:01:01]} Ne5 {[%emt 0:01:33]} 24. Qxd8 {[%emt 0:07:56]} Rfxd8 {[%emt 0:00:11]} 25. Ne4 {[%emt 0:10:11]} f5 {[%emt 0:16:45]} 26. Ng5 {[%emt 0:00:51]} h6 {[%emt 0:06:04]} 27. Nxe6 {[%emt 0:00:32]} Nf3+ {[%emt 0:00:55]} 28. Bxf3 {[%emt 0:00:16]} Bxf3 {[%emt 0:00:08]} 29. Nxg7 {[%emt 0:00:46]} Bxd1 {[%emt 0:04:05]} 30. Rxd1 {[%emt 0:00:11]} Kxg7 {[%emt 0:01:05]} 31. Bc3+ {[%emt 0:00:13]} Kf7 {[%emt 0:03:52]} 32. Bd4 {[%emt 0:00:08]} Rbc8 {[%emt 0:06:02]} 33. b4 {[%emt 0:04:07]} Rc4 {[%emt 0:10:46]} 34. a3 {[%emt 0:01:13]} a6 {[%emt 0:00:21]} 35. Kg2 {[%emt 0:01:00]} Ke6 {[%emt 0:00:59]} 36. Ra1 {[%emt 0:01:41]} Ra8 {[%emt 0:03:43]} 37. Ra2 {[%emt 0:06:51]} h5 {[%emt 0:04:38]} 38. h4 {[%emt 0:03:21]} Rac8 {[%emt 0:04:18]} 39. Bc5 {[%emt 0:05:23]} Rd8 {[%emt 0:06:10]} 40. Bd4 {[%emt 0:08:06]} Rdc8 {[%emt 0:00:20]} 1/2-1/2

[Event "Panchenko Memorial-A 2021"]
[Site "Chelyabinsk"]
[Date "2021.09.14"]
[Round "2.4"]
[White "Lazavik, Denis"]
[Black "Azarov, Sergei"]
[Result "1-0"]
[ECO "D37"]
[WhiteElo "2440"]
[BlackElo "2603"]
[Annotator "ChessBase"]
[PlyCount "105"]
[EventDate "2021.09.13"]
[EventType "swiss"]
[EventCountry "RUS"]
[SourceTitle "playchess.com"]
[Source "ChessBase"]
[SourceQuality "1"]
[TimeControl "5400+30"]

1. d4 {[%emt 0:00:08]} Nf6 {[%emt 0:00:07]} 2. c4 {[%emt 0:00:22]} e6 {[%emt 0:00:05]} 3. Nf3 {[%emt 0:00:19]} d5 {[%emt 0:00:11]} 4. Nc3 {[%emt 0:00:31]} dxc4 {[%emt 0:00:10]} 5. e4 {[%emt 0:00:50]} b5 {[%emt 0:00:12]} 6. e5 {[%emt 0:00:39]} Nd5 {[%emt 0:00:14]} 7. Nxb5 {[%emt 0:00:17]} Nb6 {[%emt 0:00:13]} 8. Be2 {[%emt 0:01:14]} Nc6 {[%emt 0:00:38]} 9. a3 {[%emt 0:03:07]} Be7 {[%emt 0:00:50]} 10. Be3 {[%emt 0:00:57]} Na5 {[%emt 0:01:12]} 11. Qc2 {[%emt 0:02:30]} Qd7 {[%emt 0:00:44]} 12. Nc3 {[%emt 0:01:34]} Bb7 {[%emt 0:00:28]} 13. Rd1 {[%emt 0:04:25]} f5 {[%emt 0:00:47]} 14. exf6 {[%emt 0:07:08]} gxf6 {[%emt 0:00:27]} 15. O-O {[%emt 0:02:49]} Rg8 {[%emt 0:00:52]} 16. g3 {[%emt 0:08:46]} O-O-O {[%emt 0:00:50]} 17. Nd2 {[%emt 0:02:54]} f5 {[%emt 0:03:54]} 18. Bf3 {[%emt 0:04:21]} Bd6 {[%emt 0:01:24]} 19. Bxb7+ {[%emt 0:04:01]} Kxb7 {[%emt 0:01:15]} 20. Rfe1 {[%emt 0:16:22]} Nd5 {[%emt 1:02:10]} 21. b4 {[%emt 0:05:32]} cxb3 {[%emt 0:11:23]} 22. Nxb3 {[%emt 0:00:27]} Nc4 {[%emt 0:00:03]} 23. Bc1 {[%emt 0:15:41]} Ka8 {[%emt 0:02:05]} 24. Qd3 {[%emt 0:02:11]} Nxc3 {[%emt 0:03:07]} 25. Qxc3 {[%emt 0:00:52]} Nb6 {[%emt 0:00:15]} 26. Nc5 {[%emt 0:02:27]} Nd5 {[%emt 0:00:58]} 27. Qf3 {[%emt 0:01:05]} Bxc5 {[%emt 0:00:09]} 28. dxc5 {[%emt 0:00:07]} Qc6 {[%emt 0:00:14]} 29. Bf4 {[%emt 0:02:19]} Rd7 {[%emt 0:01:00]} 30. Re2 {[%emt 0:01:50]} Rgd8 {[%emt 0:01:08]} 31. Rde1 {[%emt 0:02:13]} Nb4 {[%emt 0:04:56]} 32. Qxc6+ {[%emt 0:03:23]} Nxc6 {[%emt 0:00:02]} 33. Bg5 {[%emt 0:00:26]} Rb8 {[%emt 0:00:35]} 34. Bf6 {[%emt 0:00:32]} Rb3 {[%emt 0:00:55]} 35. Rxe6 {[%emt 0:00:21]} Kb7 {[%emt 0:00:04]} 36. a4 {[%emt 0:01:12]} a5 {[%emt 0:01:36]} 37. h4 {[%emt 0:00:59]} Rd5 {[%emt 0:00:34]} 38. Re8 {[%emt 0:01:02]} Rb4 {[%emt 0:02:11]} 39. Rh8 {[%emt 0:00:46]} Rd7 {[%emt 0:00:07]} 40. Ra1 {[%emt 0:01:36]} Rc4 {[%emt 0:00:38]} 41. h5 {[%emt 0:00:44]} Rxc5 {[%emt 0:00:57]} 42. Rb1+ {[%emt 0:00:31]} Nb4 {[%emt 0:00:59]} 43. h6 {[%emt 0:00:28]} Rc2 {[%emt 0:00:39]} 44. Bg5 {[%emt 0:01:21]} c5 {[%emt 0:00:37]} 45. Rf8 {[%emt 0:00:12]} c4 {[%emt 0:00:29]} 46. Rxf5 {[%emt 0:00:12]} Ka6 {[%emt 0:00:24]} 47. Re1 {[%emt 0:00:27]} Rc7 {[%emt 0:00:07]} 48. Re6+ {[%emt 0:00:27]} Nc6 {[%emt 0:00:27]} 49. Rc5 {[%emt 0:00:19]} Kb7 {[%emt 0:00:06]} 50. Bf4 {[%emt 0:00:42]} Rc8 {[%emt 0:00:27]} 51. Rb5+ {[%emt 0:00:29]} Ka8 {[%emt 0:00:01]} 52. Rb6 {[%emt 0:00:18]} Nb4 {[%emt 0:00:50]} 53. Re5 {[%emt 0:00:26]} 1-0

[Event "Panchenko Memorial-A 2021"]
[Site "Chelyabinsk"]
[Date "2021.09.14"]
[Round "2.5"]
[White "Schekachikhin, Maksim"]
[Black "Timofeev, Artyom"]
[Result "0-1"]
[ECO "C43"]
[WhiteElo "2438"]
[BlackElo "2583"]
[Annotator "ChessBase"]
[PlyCount "88"]
[EventDate "2021.09.13"]
[EventType "swiss"]
[EventCountry "RUS"]
[SourceTitle "playchess.com"]
[Source "ChessBase"]
[SourceQuality "1"]
[TimeControl "5400+30"]

1. e4 {[%emt 0:00:10]} e5 {[%emt 0:02:39]} 2. Nf3 {[%emt 0:00:29]} Nf6 {[%emt 0:00:34]} 3. d4 {[%emt 0:01:25]} exd4 {[%emt 0:03:12]} 4. e5 {[%emt 0:01:31]} Ne4 {[%emt 0:00:09]} 5. Qxd4 {[%emt 0:01:00]} d5 {[%emt 0:00:08]} 6. exd6 {[%emt 0:02:22]} Nxd6 {[%emt 0:00:07]} 7. Bd3 {[%emt 0:10:46]} Nc6 {[%emt 0:00:41]} 8. Qf4 {[%emt 0:00:23]} Be7 {[%emt 0:04:27]} 9. Nc3 {[%emt 0:01:03]} Be6 {[%emt 0:00:11]} 10. O-O {[%emt 0:05:03]} Bf6 {[%emt 0:05:13]} 11. Re1 {[%emt 0:03:20]} O-O {[%emt 0:03:45]} 12. Be3 {[%emt 0:05:38]} Bxc3 {[%emt 0:07:37]} 13. bxc3 {[%emt 0:01:27]} h6 {[%emt 0:01:07]} 14. Rad1 {[%emt 0:08:20]} Re8 {[%emt 0:11:35]} 15. c4 {[%emt 0:02:52]} Qf6 {[%emt 0:00:10]} 16. c5 {[%emt 0:05:35]} Nf5 {[%emt 0:08:02]} 17. Bxf5 {[%emt 0:08:05]} Qxf5 {[%emt 0:13:24]} 18. a3 {[%emt 0:11:20]} Rac8 {[%emt 0:04:31]} 19. c3 {[%emt 0:01:52]} Qxf4 {[%emt 0:02:24]} 20. Bxf4 {[%emt 0:00:07]} g5 {[%emt 0:00:07]} 21. Be3 {[%emt 0:05:41]} Bg4 {[%emt 0:00:57]} 22. Rb1 {[%emt 0:03:40]} Bxf3 {[%emt 0:02:38]} 23. gxf3 {[%emt 0:00:04]} Ne5 {[%emt 0:04:21]} 24. Kg2 {[%emt 0:00:45]} b6 {[%emt 0:00:06]} 25. h4 {[%emt 0:03:27]} gxh4 {[%emt 0:07:33]} 26. Rh1 {[%emt 0:04:08]} Ng6 {[%emt 0:11:01]} 27. Bxh6 {[%emt 0:00:44]} Re5 {[%emt 0:00:29]} 28. Be3 {[%emt 0:00:32]} Rf5 {[%emt 0:00:08]} 29. Rb4 {[%emt 0:01:50]} bxc5 {[%emt 0:03:22]} 30. Rb5 {[%emt 0:05:14]} a6 {[%emt 0:00:56]} 31. Rxc5 {[%emt 0:00:32]} Rxc5 {[%emt 0:00:05]} 32. Bxc5 {[%emt 0:00:03]} Rb8 {[%emt 0:00:13]} 33. Kh3 {[%emt 0:02:24]} Rb3 {[%emt 0:00:36]} 34. Bd4 {[%emt 0:01:09]} Rxa3 {[%emt 0:00:54]} 35. Rb1 {[%emt 0:00:12]} Ra4 {[%emt 0:00:30]} 36. Rb8+ {[%emt 0:01:26]} Kh7 {[%emt 0:00:05]} 37. Rc8 {[%emt 0:00:49]} Rc4 {[%emt 0:00:35]} 38. Kg4 {[%emt 0:01:33]} c5 {[%emt 0:02:58]} 39. f4 {[%emt 0:00:41]} a5 {[%emt 0:01:00]} 40. Rc7 {[%emt 0:01:19]} Kh6 {[%emt 0:00:28]} 41. Rc6 {[%emt 0:00:42]} a4 {[%emt 0:00:26]} 42. Kf3 {[%emt 0:01:03]} a3 {[%emt 0:00:20]} 43. Be3 {[%emt 0:00:28]} f5 {[%emt 0:00:20]} 44. Ke2 {[%emt 0:00:36]} Ra4 {[%emt 0:00:12]} 0-1

[Event "Panchenko Memorial-A 2021"]
[Site "Chelyabinsk"]
[Date "2021.09.14"]
[Round "2.6"]
[White "Lintchevski, Daniil"]
[Black "Kostenko, Petr"]
[Result "1-0"]
[ECO "B32"]
[WhiteElo "2561"]
[BlackElo "2435"]
[Annotator "ChessBase"]
[PlyCount "87"]
[EventDate "2021.09.13"]
[EventType "swiss"]
[EventCountry "RUS"]
[SourceTitle "playchess.com"]
[Source "ChessBase"]
[SourceQuality "1"]
[TimeControl "5400+30"]

1. e4 {[%emt 0:00:20]} c5 {[%emt 0:00:59]} 2. Nf3 {[%emt 0:01:01]} Nc6 {[%emt 0:00:25]} 3. d4 {[%emt 0:01:42]} cxd4 {[%emt 0:00:07]} 4. Nxd4 {[%emt 0:00:03]} e5 {[%emt 0:00:58]} 5. Nb5 {[%emt 0:00:27]} d6 {[%emt 0:00:09]} 6. N1c3 {[%emt 0:00:07]} a6 {[%emt 0:00:06]} 7. Na3 {[%emt 0:00:06]} Be7 {[%emt 0:00:21]} 8. Nc4 {[%emt 0:02:41]} b5 {[%emt 0:00:11]} 9. Ne3 {[%emt 0:00:07]} Nf6 {[%emt 0:00:04]} 10. Bd3 {[%emt 0:04:04]} O-O {[%emt 0:00:08]} 11. O-O {[%emt 0:00:10]} Rb8 {[%emt 0:02:41]} 12. a3 {[%emt 0:00:47]} Nd4 {[%emt 0:01:01]} 13. Ncd5 {[%emt 0:03:54]} Ne6 {[%emt 0:00:59]} 14. c4 {[%emt 0:16:00]} Nc5 {[%emt 0:07:46]} 15. cxb5 {[%emt 0:04:34]} axb5 {[%emt 0:00:35]} 16. Nxf6+ {[%emt 0:00:35]} Bxf6 {[%emt 0:00:04]} 17. b4 {[%emt 0:00:08]} Ne6 {[%emt 0:00:10]} 18. Nd5 {[%emt 0:02:24]} Bg5 {[%emt 0:05:08]} 19. Bb2 {[%emt 0:00:44]} Nc7 {[%emt 0:00:31]} 20. Nc3 {[%emt 0:02:32]} Be6 {[%emt 0:03:31]} 21. Qe2 {[%emt 0:01:49]} Qd7 {[%emt 0:00:31]} 22. Bc1 {[%emt 0:02:35]} Bxc1 {[%emt 0:02:00]} 23. Rfxc1 {[%emt 0:00:05]} Rb7 {[%emt 0:03:41]} 24. Qf3 {[%emt 0:07:56]} Qe7 {[%emt 0:04:56]} 25. Bf1 {[%emt 0:05:07]} Ra8 {[%emt 0:03:50]} 26. Rd1 {[%emt 0:00:19]} g6 {[%emt 0:04:53]} 27. h3 {[%emt 0:02:24]} Kg7 {[%emt 0:00:25]} 28. Rd2 {[%emt 0:02:21]} Rb6 {[%emt 0:19:06]} 29. Qe3 {[%emt 0:00:53]} Rab8 {[%emt 0:01:38]} 30. Rad1 {[%emt 0:06:15]} h6 {[%emt 0:04:23]} 31. f4 {[%emt 0:03:40]} Qf6 {[%emt 0:14:24]} 32. f5 {[%emt 0:09:56]} gxf5 {[%emt 0:05:52]} 33. Rxd6 {[%emt 0:00:52]} f4 {[%emt 0:02:55]} 34. Qf2 {[%emt 0:00:07]} R6b7 {[%emt 0:02:55]} 35. Nd5 {[%emt 0:01:00]} Qg5 {[%emt 0:00:31]} 36. h4 {[%emt 0:00:53]} Qg6 {[%emt 0:01:36]} 37. Ne7 {[%emt 0:01:53]} Qxe4 {[%emt 0:01:41]} 38. Re1 {[%emt 0:00:59]} Qh7 {[%emt 0:02:27]} 39. Bd3 {[%emt 0:00:58]} Qh8 {[%emt 0:00:11]} 40. Rxe5 {[%emt 0:00:39]} Ne8 {[%emt 0:00:42]} 41. Qd4 {[%emt 0:00:47]} Nf6 {[%emt 0:00:37]} 42. Nd5 {[%emt 0:03:45]} Kf8 {[%emt 0:00:11]} 43. Rexe6 {[%emt 0:02:35]} fxe6 {[%emt 0:00:05]} 44. Rxe6 {[%emt 0:00:29]} 1-0

[Event "Panchenko Memorial-A 2021"]
[Site "Chelyabinsk"]
[Date "2021.09.14"]
[Round "2.7"]
[White "Savitskiy, Sergey"]
[Black "Petrov, Nikita"]
[Result "1/2-1/2"]
[ECO "B40"]
[WhiteElo "2431"]
[BlackElo "2555"]
[Annotator "ChessBase"]
[PlyCount "73"]
[EventDate "2021.09.13"]
[EventType "swiss"]
[EventCountry "RUS"]
[SourceTitle "playchess.com"]
[Source "ChessBase"]
[SourceQuality "1"]
[TimeControl "5400+30"]

1. e4 {[%emt 0:00:03]} c5 {[%emt 0:00:18]} 2. Nf3 {[%emt 0:00:09]} e6 {[%emt 0:00:18]} 3. d4 {[%emt 0:00:08]} cxd4 {[%emt 0:00:07]} 4. Nxd4 {[%emt 0:00:06]} Nf6 {[%emt 0:00:34]} 5. Nc3 {[%emt 0:00:07]} Nc6 {[%emt 0:00:05]} 6. Nxc6 {[%emt 0:00:24]} bxc6 {[%emt 0:00:07]} 7. e5 {[%emt 0:00:06]} Nd5 {[%emt 0:00:05]} 8. Ne4 {[%emt 0:00:06]} Bb7 {[%emt 0:00:40]} 9. Bd3 {[%emt 0:17:17]} Qc7 {[%emt 0:12:27]} 10. f4 {[%emt 0:00:46]} c5 {[%emt 0:00:07]} 11. c4 {[%emt 0:02:57]} Nb4 {[%emt 0:00:13]} 12. Bb1 {[%emt 0:07:07]} Nc6 {[%emt 0:01:29]} 13. O-O {[%emt 0:10:43]} a5 {[%emt 0:05:22]} 14. Be3 {[%emt 0:04:24]} Nd4 {[%emt 0:00:07]} 15. Nc3 {[%emt 0:03:19]} Be7 {[%emt 0:09:44]} 16. Be4 {[%emt 0:04:05]} Bxe4 {[%emt 0:12:04]} 17. Nxe4 {[%emt 0:00:35]} Nf5 {[%emt 0:00:18]} 18. Bf2 {[%emt 0:01:40]} Qc6 {[%emt 0:07:02]} 19. Qf3 {[%emt 0:09:36]} O-O {[%emt 0:17:19]} 20. Rad1 {[%emt 0:01:41]} f6 {[%emt 0:01:22]} 21. exf6 {[%emt 0:04:51]} gxf6 {[%emt 0:00:07]} 22. Kh1 {[%emt 0:02:09]} Rac8 {[%emt 0:07:22]} 23. b3 {[%emt 0:06:16]} Ng7 {[%emt 0:05:28]} 24. Rd3 {[%emt 0:08:51]} f5 {[%emt 0:01:00]} 25. Nc3 {[%emt 0:00:08]} Qxf3 {[%emt 0:00:33]} 26. Rxf3 {[%emt 0:00:06]} Rfd8 {[%emt 0:02:31]} 27. Rd1 {[%emt 0:01:03]} Ne8 {[%emt 0:02:54]} 28. Rfd3 {[%emt 0:00:57]} Nf6 {[%emt 0:02:46]} 29. Be1 {[%emt 0:06:57]} Ra8 {[%emt 0:02:36]} 30. a4 {[%emt 0:02:08]} Kf7 {[%emt 0:02:12]} 31. Bh4 {[%emt 0:01:12]} Kf8 {[%emt 0:00:11]} 32. Be1 {[%emt 0:03:30]} Kf7 {[%emt 0:00:59]} 33. Kg1 {[%emt 0:00:15]} d6 {[%emt 0:03:03]} 34. Rh3 {[%emt 0:02:39]} Rh8 {[%emt 0:02:20]} 35. Rhd3 {[%emt 0:00:17]} Rhd8 {[%emt 0:00:32]} 36. Rh3 {[%emt 0:00:17]} Rh8 {[%emt 0:00:03]} 37. Rhd3 {[%emt 0:00:05]} 1/2-1/2

[Event "Panchenko Memorial-A 2021"]
[Site "Chelyabinsk"]
[Date "2021.09.14"]
[Round "2.9"]
[White "Zarubitski, Viachaslau"]
[Black "Pridorozhni, Aleksei"]
[Result "0-1"]
[ECO "B40"]
[WhiteElo "2416"]
[BlackElo "2550"]
[Annotator "ChessBase"]
[PlyCount "128"]
[EventDate "2021.09.13"]
[EventType "swiss"]
[EventCountry "RUS"]
[SourceTitle "playchess.com"]
[Source "ChessBase"]
[SourceQuality "1"]
[TimeControl "5400+30"]

1. e4 {[%emt 0:00:04]} c5 {[%emt 0:00:07]} 2. Nf3 {[%emt 0:00:14]} e6 {[%emt 0:00:07]} 3. d4 {[%emt 0:00:29]} cxd4 {[%emt 0:00:08]} 4. Nxd4 {[%emt 0:00:03]} Nf6 {[%emt 0:00:09]} 5. Nc3 {[%emt 0:00:05]} Nc6 {[%emt 0:00:05]} 6. Ndb5 {[%emt 0:00:16]} Bc5 {[%emt 0:00:09]} 7. Bf4 {[%emt 0:00:30]} O-O {[%emt 0:00:09]} 8. Bc7 {[%emt 0:00:46]} Qe7 {[%emt 0:00:08]} 9. Bd6 {[%emt 0:00:05]} Bxd6 {[%emt 0:00:06]} 10. Qxd6 {[%emt 0:00:13]} Ne8 {[%emt 0:00:50]} 11. Qxe7 {[%emt 0:01:43]} Nxe7 {[%emt 0:00:07]} 12. O-O-O {[%emt 0:00:13]} f5 {[%emt 0:00:08]} 13. e5 {[%emt 0:00:53]} g5 {[%emt 0:00:25]} 14. Bc4 {[%emt 0:18:31]} Ng6 {[%emt 0:04:17]} 15. Rhe1 {[%emt 0:00:35]} a6 {[%emt 0:00:19]} 16. Nd6 {[%emt 0:01:42]} Nxd6 {[%emt 0:00:13]} 17. Rxd6 {[%emt 0:00:22]} b5 {[%emt 0:00:07]} 18. Bf1 {[%emt 0:04:57]} Ra7 {[%emt 0:03:39]} 19. a4 {[%emt 0:10:14]} b4 {[%emt 0:00:49]} 20. Nb1 {[%emt 0:12:30]} Kf7 {[%emt 0:04:16]} 21. Nd2 {[%emt 0:02:22]} Ke7 {[%emt 0:00:31]} 22. Rb6 {[%emt 0:00:18]} a5 {[%emt 0:00:24]} 23. Nb3 {[%emt 0:15:58]} Bb7 {[%emt 0:01:14]} 24. Nd4 {[%emt 0:02:24]} Rb8 {[%emt 0:05:19]} 25. g3 {[%emt 0:05:00]} Raa8 {[%emt 0:01:26]} 26. Bd3 {[%emt 0:03:21]} g4 {[%emt 0:05:35]} 27. Rb5 {[%emt 0:08:43]} Bg2 {[%emt 0:01:44]} 28. Rc5 {[%emt 0:00:07]} Rc8 {[%emt 0:00:32]} 29. Rb5 {[%emt 0:00:04]} Bc6 {[%emt 0:02:10]} 30. Nxc6+ {[%emt 0:00:52]} Rxc6 {[%emt 0:00:06]} 31. h3 {[%emt 0:00:29]} h5 {[%emt 0:03:14]} 32. hxg4 {[%emt 0:00:18]} hxg4 {[%emt 0:00:06]} 33. Rh1 {[%emt 0:00:19]} Nh8 {[%emt 0:00:09]} 34. Rb7 {[%emt 0:05:34]} Rc5 {[%emt 0:02:03]} 35. Rh7+ {[%emt 0:00:27]} Nf7 {[%emt 0:00:08]} 36. Bb5 {[%emt 0:00:01]} Rd8 {[%emt 0:00:43]} 37. Ra7 {[%emt 0:01:18]} Rxe5 {[%emt 0:00:18]} 38. Rxa5 {[%emt 0:00:03]} Kf6 {[%emt 0:03:31]} 39. Ra7 {[%emt 0:00:08]} Ng5 {[%emt 0:04:03]} 40. Rh6+ {[%emt 0:03:40]} Ke7 {[%emt 0:02:41]} 41. Kb1 {[%emt 0:00:01]} Rd5 {[%emt 0:00:31]} 42. Bc4 {[%emt 0:02:29]} Rd2 {[%emt 0:03:06]} 43. Rg6 {[%emt 0:00:17]} Rh8 {[%emt 0:00:06]} 44. a5 {[%emt 0:03:19]} Kf7 {[%emt 0:01:09]} 45. Rxg5 {[%emt 0:00:04]} Kf6 {[%emt 0:00:04]} 46. Rxf5+ {[%emt 0:00:53]} exf5 {[%emt 0:00:09]} 47. a6 {[%emt 0:00:14]} f4 {[%emt 0:00:59]} 48. Rb7 {[%emt 0:00:50]} f3 {[%emt 0:04:10]} 49. a7 {[%emt 0:00:30]} Ra8 {[%emt 0:00:05]} 50. Rb6+ {[%emt 0:00:30]} Ke5 {[%emt 0:01:41]} 51. Rb5+ {[%emt 0:00:22]} d5 {[%emt 0:01:21]} 52. Ra5 {[%emt 0:00:11]} Rxa7 {[%emt 0:00:39]} 53. Rxa7 {[%emt 0:00:18]} dxc4 {[%emt 0:00:04]} 54. Re7+ {[%emt 0:01:08]} Kf5 {[%emt 0:00:33]} 55. Rf7+ {[%emt 0:00:30]} Kg5 {[%emt 0:01:03]} 56. Rb7 {[%emt 0:00:32]} Rxf2 {[%emt 0:00:49]} 57. Rb5+ {[%emt 0:00:28]} Kg6 {[%emt 0:01:04]} 58. Rb6+ {[%emt 0:00:14]} Kf5 {[%emt 0:00:06]} 59. Rxb4 {[%emt 0:00:24]} Rf1+ {[%emt 0:00:25]} 60. Ka2 {[%emt 0:00:04]} f2 {[%emt 0:00:16]} 61. Rb8 {[%emt 0:01:11]} Ra1+ {[%emt 0:00:30]} 62. Kxa1 {[%emt 0:00:01]} f1=Q+ {[%emt 0:00:08]} 63. Ka2 {[%emt 0:00:01]} Qg1 {[%emt 0:00:23]} 64. Rf8+ {[%emt 0:00:30]} Ke5 0-1

[Event "Panchenko Memorial-A 2021"]
[Site "Chelyabinsk"]
[Date "2021.09.14"]
[Round "2.10"]
[White "Afanasiev, Nikita"]
[Black "Agmanov, Zhandos"]
[Result "1-0"]
[ECO "A21"]
[WhiteElo "2548"]
[BlackElo "2425"]
[Annotator "ChessBase"]
[PlyCount "65"]
[EventDate "2021.09.13"]
[EventType "swiss"]
[EventCountry "RUS"]
[SourceTitle "playchess.com"]
[Source "ChessBase"]
[SourceQuality "1"]
[TimeControl "5400+30"]

1. c4 {[%emt 0:00:33]} e5 {[%emt 0:00:45]} 2. Nc3 {[%emt 0:00:33]} Bb4 {[%emt 0:00:33]} 3. Nd5 {[%emt 0:01:57]} Be7 {[%emt 0:01:25]} 4. d4 {[%emt 0:01:24]} exd4 {[%emt 0:00:20]} 5. Qxd4 {[%emt 0:00:31]} Nf6 {[%emt 0:01:05]} 6. Nxe7 {[%emt 0:01:24]} Qxe7 {[%emt 0:00:07]} 7. Bg5 {[%emt 0:00:05]} Nc6 {[%emt 0:12:07]} 8. Qc3 {[%emt 0:01:42]} d6 {[%emt 0:01:40]} 9. Bxf6 {[%emt 0:02:40]} Qxf6 {[%emt 0:01:12]} 10. Qxf6 {[%emt 0:01:50]} gxf6 {[%emt 0:00:02]} 11. e3 {[%emt 0:00:07]} Be6 {[%emt 0:00:56]} 12. Rc1 {[%emt 0:00:21]} Ke7 {[%emt 0:11:28]} 13. Ne2 {[%emt 0:00:46]} Ne5 {[%emt 0:01:11]} 14. Ng3 {[%emt 0:17:18]} Rhg8 {[%emt 0:05:00]} 15. Be2 {[%emt 0:01:40]} c5 {[%emt 0:20:50]} 16. O-O {[%emt 0:06:04]} a6 {[%emt 0:01:21]} 17. f4 {[%emt 0:05:17]} Nc6 {[%emt 0:02:36]} 18. Rfd1 {[%emt 0:00:09]} f5 {[%emt 0:08:00]} 19. Rd2 {[%emt 0:08:17]} Rab8 {[%emt 0:01:55]} 20. Bd3 {[%emt 0:03:17]} Kf6 {[%emt 0:02:39]} 21. Rcd1 {[%emt 0:07:56]} b5 {[%emt 0:05:34]} 22. b3 {[%emt 0:15:29]} Na5 {[%emt 0:04:45]} 23. cxb5 {[%emt 0:05:26]} axb5 {[%emt 0:00:27]} 24. e4 {[%emt 0:00:04]} c4 {[%emt 0:05:44]} 25. exf5 {[%emt 0:00:06]} cxd3 {[%emt 0:03:15]} 26. fxe6 {[%emt 0:00:04]} Nc4 {[%emt 0:04:25]} 27. Ne4+ {[%emt 0:07:51]} Kxe6 {[%emt 0:03:12]} 28. Rxd3 {[%emt 0:00:06]} Nb6 {[%emt 0:01:12]} 29. Rxd6+ {[%emt 0:00:14]} Ke7 {[%emt 0:00:01]} 30. f5 {[%emt 0:02:10]} Rgc8 {[%emt 0:00:38]} 31. Rh6 {[%emt 0:01:48]} Rc2 {[%emt 0:00:26]} 32. Ng5 {[%emt 0:00:51]} Nd7 {[%emt 0:00:29]} 33. f6+ {[%emt 0:00:09]} 1-0